[Event "Late-Titled-Tuesday-Blitz-February-27-2024"]
[Site "Chess.com"]
[Date "2024.02.27"]
[Round "8"]
[White "miraitrunks"]
[Black "dimoni64"]
[Result "0-1"]
[WhiteElo "2196"]
[BlackElo "1984"]
[TimeControl "180+1"]
[EndTime "15:27:47 PST"]
[Termination "dimoni64 won on time"]

1. e4 {[%clk 0:03:00.9]} 1... e5 {[%clk 0:03:00.9]} 2. Nf3 {[%clk 0:02:53.4]}
2... Nc6 {[%clk 0:03:00.2]} 3. Bb5 {[%clk 0:02:45.7]} 3... a6 {[%clk 0:02:58.2]}
4. Ba4 {[%clk 0:02:45.5]} 4... Nf6 {[%clk 0:02:58.7]} 5. O-O {[%clk 0:02:43.9]}
5... b5 {[%clk 0:02:58.6]} 6. Bb3 {[%clk 0:02:44]} 6... d6 {[%clk 0:02:56.4]} 7.
h3 {[%clk 0:02:43.2]} 7... Na5 {[%clk 0:02:52]} 8. d4 {[%clk 0:02:41.9]} 8...
Nxb3 {[%clk 0:02:50.7]} 9. axb3 {[%clk 0:02:42]} 9... exd4 {[%clk 0:02:48.1]}
10. Qxd4 {[%clk 0:02:10.3]} 10... Be7 {[%clk 0:02:45.4]} 11. Nc3 {[%clk
0:02:06.4]} 11... O-O {[%clk 0:02:43.5]} 12. Nxb5 {[%clk 0:02:04.7]} 12... c5
{[%clk 0:02:35.2]} 13. Qd3 {[%clk 0:02:03.8]} 13... Bb7 {[%clk 0:02:35]} 14. Nc3
{[%clk 0:02:03.6]} 14... a5 {[%clk 0:02:25]} 15. Bg5 {[%clk 0:01:56.5]} 15...
Ba6 {[%clk 0:02:21.8]} 16. Nb5 {[%clk 0:01:20.9]} 16... h6 {[%clk 0:02:04.4]}
17. Bh4 {[%clk 0:01:16.3]} 17... Qb6 {[%clk 0:01:42.9]} 18. c4 {[%clk
0:01:13.7]} 18... Rfd8 {[%clk 0:01:42.5]} 19. Rfd1 {[%clk 0:01:10.7]} 19... Rab8
{[%clk 0:01:37.4]} 20. Bxf6 {[%clk 0:01:00.7]} 20... Bxf6 {[%clk 0:01:36.8]} 21.
Nxd6 {[%clk 0:01:00.7]} 21... Qxb3 {[%clk 0:01:27.5]} 22. Qxb3 {[%clk
0:00:57.8]} 22... Rxb3 {[%clk 0:01:25.1]} 23. e5 {[%clk 0:00:58.3]} 23... Be7
{[%clk 0:01:23.1]} 24. Rxa5 {[%clk 0:00:50.3]} 24... Bxc4 {[%clk 0:01:22.6]} 25.
Rxc5 {[%clk 0:00:49.1]} 25... Be6 {[%clk 0:01:18.6]} 26. Nd4 {[%clk 0:00:47.3]}
26... Rxb2 {[%clk 0:01:16.7]} 27. Nxe6 {[%clk 0:00:47.1]} 27... fxe6 {[%clk
0:01:16.6]} 28. Rc7 {[%clk 0:00:47.2]} 28... Bg5 {[%clk 0:01:11.5]} 29. Rd4
{[%clk 0:00:32.3]} 29... Rf8 {[%clk 0:01:07]} 30. Ne4 {[%clk 0:00:28.2]} 30...
Rb1+ {[%clk 0:01:02.6]} 31. Kh2 {[%clk 0:00:24.7]} 31... Bf4+ {[%clk 0:01:02.8]}
32. Ng3 {[%clk 0:00:15.8]} 32... Bxe5 {[%clk 0:01:02.7]} 33. Rdd7 {[%clk
0:00:16]} 33... Bxc7 {[%clk 0:01:02]} 34. Rxc7 {[%clk 0:00:16.9]} 34... Rxf2
{[%clk 0:01:00.9]} 35. Nh5 {[%clk 0:00:17.4]} 35... Rbb2 {[%clk 0:00:55.5]} 36.
Rxg7+ {[%clk 0:00:16.8]} 36... Kh8 {[%clk 0:00:53.2]} 37. Rg6 {[%clk 0:00:17.1]}
37... Kh7 {[%clk 0:00:48.6]} 38. Rg7+ {[%clk 0:00:13.6]} 38... Kh8 {[%clk
0:00:48.2]} 39. Rg6 {[%clk 0:00:14.1]} 39... e5 {[%clk 0:00:47.8]} 40. Rxh6+
{[%clk 0:00:13.5]} 40... Kg8 {[%clk 0:00:47.4]} 41. Rg6+ {[%clk 0:00:13.3]}
41... Kf7 {[%clk 0:00:47.5]} 42. Rg7+ {[%clk 0:00:12.9]} 42... Ke6 {[%clk
0:00:46.9]} 43. Rg6+ {[%clk 0:00:11.5]} 43... Kd5 {[%clk 0:00:46.3]} 44. Nf6+
{[%clk 0:00:11.7]} 44... Kd4 {[%clk 0:00:45.4]} 45. Rg4+ {[%clk 0:00:11.3]}
45... Kd3 {[%clk 0:00:44.4]} 46. Ne4 {[%clk 0:00:11]} 46... Rfe2 {[%clk
0:00:42.8]} 47. Nc5+ {[%clk 0:00:10.2]} 47... Kc3 {[%clk 0:00:37.7]} 48. Re4
{[%clk 0:00:09.6]} 48... Rxe4 {[%clk 0:00:36.1]} 49. Nxe4+ {[%clk 0:00:10.5]}
49... Kd3 {[%clk 0:00:36.4]} 50. Nf2+ {[%clk 0:00:09.5]} 50... Ke2 {[%clk
0:00:35.8]} 51. Ng4 {[%clk 0:00:06.3]} 51... e4 {[%clk 0:00:35.2]} 52. h4 {[%clk
0:00:06.5]} 52... e3 {[%clk 0:00:34.2]} 53. h5 {[%clk 0:00:07]} 53... Rb5 {[%clk
0:00:32.7]} 54. Nf6 {[%clk 0:00:05.8]} 54... Rf5 {[%clk 0:00:30.9]} 0-1

[Event "Late-Titled-Tuesday-Blitz-February-27-2024"]
[Site "Chess.com"]
[Date "2024.02.27"]
[Round "8"]
[White "NateSolon"]
[Black "wild3000"]
[Result "0-1"]
[WhiteElo "2679"]
[BlackElo "2510"]
[TimeControl "180+1"]
[EndTime "15:27:49 PST"]
[Termination "wild3000 won on time"]

1. d4 {[%clk 0:03:00.9]} 1... Nf6 {[%clk 0:02:59.6]} 2. Bf4 {[%clk 0:03:00.4]}
2... e6 {[%clk 0:02:57]} 3. e3 {[%clk 0:02:59.2]} 3... b6 {[%clk 0:02:56.9]} 4.
Qf3 {[%clk 0:02:59]} 4... d5 {[%clk 0:02:50]} 5. Nc3 {[%clk 0:02:59.1]} 5... Bb7
{[%clk 0:02:49.4]} 6. O-O-O {[%clk 0:02:58.7]} 6... Bb4 {[%clk 0:02:43.6]} 7.
Nge2 {[%clk 0:02:58.3]} 7... Nbd7 {[%clk 0:02:38.5]} 8. Nb5 {[%clk 0:02:43.6]}
8... Rc8 {[%clk 0:02:19]} 9. a3 {[%clk 0:02:34.1]} 9... Be7 {[%clk 0:02:18]} 10.
Nxa7 {[%clk 0:02:16.1]} 10... Ra8 {[%clk 0:02:17.8]} 11. Nb5 {[%clk 0:02:16.3]}
11... Rc8 {[%clk 0:02:16.1]} 12. g4 {[%clk 0:02:00.1]} 12... O-O {[%clk
0:02:11.7]} 13. Ng3 {[%clk 0:01:46.8]} 13... Ne8 {[%clk 0:02:01.8]} 14. h4
{[%clk 0:01:43.3]} 14... c6 {[%clk 0:02:01.5]} 15. Nc3 {[%clk 0:01:42.1]} 15...
b5 {[%clk 0:02:01.6]} 16. Na2 {[%clk 0:01:36.1]} 16... Ra8 {[%clk 0:01:49.2]}
17. Kb1 {[%clk 0:01:33.3]} 17... Nd6 {[%clk 0:01:38.8]} 18. g5 {[%clk
0:01:23.1]} 18... Nc4 {[%clk 0:01:37.9]} 19. Bxc4 {[%clk 0:01:08.2]} 19... bxc4
{[%clk 0:01:38.8]} 20. e4 {[%clk 0:01:08.6]} 20... Qb6 {[%clk 0:01:33.2]} 21.
Nb4 {[%clk 0:01:03.9]} 21... Bxb4 {[%clk 0:01:27.8]} 22. axb4 {[%clk 0:01:04.8]}
22... Qxb4 {[%clk 0:01:26.4]} 23. Qc3 {[%clk 0:01:00.7]} 23... Qa4 {[%clk
0:01:11]} 24. Kc1 {[%clk 0:01:00.4]} 24... Qb5 {[%clk 0:01:01.6]} 25. Kd2 {[%clk
0:00:54.4]} 25... Ra2 {[%clk 0:01:00.7]} 26. Ra1 {[%clk 0:00:46.1]} 26... Rfa8
{[%clk 0:00:59.1]} 27. Rxa2 {[%clk 0:00:42.6]} 27... Rxa2 {[%clk 0:01:00]} 28.
Rb1 {[%clk 0:00:40.9]} 28... Nb6 {[%clk 0:00:59.4]} 29. Kc1 {[%clk 0:00:31.2]}
29... Na4 {[%clk 0:00:52.5]} 30. Qe3 {[%clk 0:00:30.3]} 30... Rxb2 {[%clk
0:00:42.9]} 31. Ra1 {[%clk 0:00:29.8]} 31... c3 {[%clk 0:00:22.6]} 32. Qd3
{[%clk 0:00:29.1]} 32... Qb6 {[%clk 0:00:16.4]} 33. Ne2 {[%clk 0:00:20.5]} 33...
Ba6 {[%clk 0:00:14.2]} 34. Rxa4 {[%clk 0:00:14.7]} 34... Bxd3 {[%clk 0:00:10.4]}
35. Ra8+ {[%clk 0:00:13.2]} 35... Qb8 {[%clk 0:00:10.5]} 36. Rxb8+ {[%clk
0:00:08.7]} 36... Rxb8 {[%clk 0:00:11.4]} 37. cxd3 {[%clk 0:00:09.4]} 37... Ra8
{[%clk 0:00:10.2]} 38. Nxc3 {[%clk 0:00:08.5]} 38... Ra1+ {[%clk 0:00:08.9]} 39.
Kd2 {[%clk 0:00:07.5]} 39... Rh1 {[%clk 0:00:08.6]} 40. Bg3 {[%clk 0:00:07.1]}
40... Kf8 {[%clk 0:00:07.5]} 41. Na4 {[%clk 0:00:04.9]} 41... Ke7 {[%clk
0:00:07.1]} 42. Nc5 {[%clk 0:00:05.5]} 42... Ra1 {[%clk 0:00:06.5]} 43. Ke3
{[%clk 0:00:05.6]} 43... Re1+ {[%clk 0:00:06]} 44. Kf3 {[%clk 0:00:04.6]} 44...
f6 {[%clk 0:00:06]} 45. gxf6+ {[%clk 0:00:04]} 45... gxf6 {[%clk 0:00:06.9]} 0-1

[Event "Late-Titled-Tuesday-Blitz-February-27-2024"]
[Site "Chess.com"]
[Date "2024.02.27"]
[Round "8"]
[White "adricalderon8"]
[Black "DryCounty"]
[Result "1-0"]
[WhiteElo "2511"]
[BlackElo "2649"]
[TimeControl "180+1"]
[EndTime "15:27:49 PST"]
[Termination "adricalderon8 won on time"]

1. e4 {[%clk 0:03:00.9]} 1... e5 {[%clk 0:02:48.1]} 2. Nf3 {[%clk 0:03:00.6]}
2... Nc6 {[%clk 0:02:48]} 3. Bc4 {[%clk 0:03:00.5]} 3... Nf6 {[%clk 0:02:47.4]}
4. d3 {[%clk 0:03:00.4]} 4... Be7 {[%clk 0:02:46.4]} 5. O-O {[%clk 0:03:00.8]}
5... O-O {[%clk 0:02:46.4]} 6. h3 {[%clk 0:02:59.1]} 6... d6 {[%clk 0:02:45.6]}
7. a4 {[%clk 0:02:58.6]} 7... Na5 {[%clk 0:02:45]} 8. Ba2 {[%clk 0:02:58.3]}
8... c5 {[%clk 0:02:45.4]} 9. Nc3 {[%clk 0:02:53.8]} 9... Nc6 {[%clk 0:02:43.6]}
10. Nd5 {[%clk 0:02:53.6]} 10... Be6 {[%clk 0:02:42.3]} 11. c3 {[%clk
0:02:53.2]} 11... Qd7 {[%clk 0:02:36.3]} 12. Re1 {[%clk 0:02:49.5]} 12... Bd8
{[%clk 0:02:35.8]} 13. Bg5 {[%clk 0:02:43.5]} 13... Ne8 {[%clk 0:02:19.9]} 14.
Bxd8 {[%clk 0:02:41.7]} 14... Qxd8 {[%clk 0:02:18.4]} 15. d4 {[%clk 0:02:39.3]}
15... cxd4 {[%clk 0:02:08.9]} 16. cxd4 {[%clk 0:02:39.3]} 16... Bxd5 {[%clk
0:01:55.3]} 17. Bxd5 {[%clk 0:02:38.6]} 17... Qe7 {[%clk 0:01:51.1]} 18. dxe5
{[%clk 0:02:36.7]} 18... dxe5 {[%clk 0:01:39.2]} 19. Qb3 {[%clk 0:02:36.6]}
19... Nf6 {[%clk 0:01:36.3]} 20. Rac1 {[%clk 0:02:30.6]} 20... Nb4 {[%clk
0:01:29.7]} 21. Red1 {[%clk 0:02:24.7]} 21... a5 {[%clk 0:01:26.5]} 22. Bc4
{[%clk 0:02:18.9]} 22... Nxe4 {[%clk 0:01:19.1]} 23. Re1 {[%clk 0:02:18.9]}
23... Nc5 {[%clk 0:01:16.2]} 24. Qe3 {[%clk 0:02:19]} 24... e4 {[%clk
0:01:06.2]} 25. Ng5 {[%clk 0:02:16.9]} 25... Rac8 {[%clk 0:00:59.8]} 26. Qf4
{[%clk 0:01:42.9]} 26... h6 {[%clk 0:00:35.1]} 27. Nxe4 {[%clk 0:01:21.1]} 27...
Ncd3 {[%clk 0:00:28.7]} 28. Qd6 {[%clk 0:01:08.3]} 28... Qxd6 {[%clk 0:00:25.8]}
29. Nxd6 {[%clk 0:01:09.2]} 29... Nxc1 {[%clk 0:00:17]} 30. Nxc8 {[%clk
0:01:07.3]} 30... Rxc8 {[%clk 0:00:14.7]} 31. Rxc1 {[%clk 0:01:07.6]} 31... Kf8
{[%clk 0:00:14.6]} 32. b3 {[%clk 0:01:06.9]} 32... b6 {[%clk 0:00:13.4]} 33. Rd1
{[%clk 0:01:03.4]} 33... Ke7 {[%clk 0:00:13.1]} 34. Re1+ {[%clk 0:01:03.8]}
34... Kf6 {[%clk 0:00:13]} 35. Rd1 {[%clk 0:01:03.9]} 35... Ke7 {[%clk
0:00:13.2]} 36. Re1+ {[%clk 0:01:03.3]} 36... Kf6 {[%clk 0:00:13.2]} 37. f4
{[%clk 0:01:03.3]} 37... Rd8 {[%clk 0:00:11.9]} 38. Kf2 {[%clk 0:01:01.7]} 38...
Nd3+ {[%clk 0:00:11.5]} 39. Bxd3 {[%clk 0:01:00.7]} 39... Rxd3 {[%clk
0:00:12.4]} 40. Re3 {[%clk 0:01:01.1]} 40... Rd2+ {[%clk 0:00:11.5]} 41. Kf3
{[%clk 0:01:01.4]} 41... Rb2 {[%clk 0:00:11.4]} 42. Rc3 {[%clk 0:01:01.6]} 42...
Ke7 {[%clk 0:00:08.6]} 43. g4 {[%clk 0:01:01.3]} 43... g6 {[%clk 0:00:08.5]} 44.
Rc7+ {[%clk 0:00:59.3]} 44... Kd6 {[%clk 0:00:06.2]} 45. Rxf7 {[%clk 0:00:59.5]}
45... Rxb3+ {[%clk 0:00:06.5]} 46. Ke4 {[%clk 0:00:59.5]} 46... Rxh3 {[%clk
0:00:05.9]} 47. Rf6+ {[%clk 0:00:59.5]} 47... Kc5 {[%clk 0:00:06.4]} 48. Rxg6
{[%clk 0:00:59.8]} 48... Kb4 {[%clk 0:00:06]} 49. Rxb6+ {[%clk 0:00:58.7]} 49...
Kxa4 {[%clk 0:00:06.3]} 50. f5 {[%clk 0:00:55.7]} 50... Rh1 {[%clk 0:00:06.4]}
51. f6 {[%clk 0:00:41.6]} 51... Rf1 {[%clk 0:00:05.7]} 52. Ke5 {[%clk
0:00:42.3]} 52... Ka3 {[%clk 0:00:04.7]} 53. Ke6 {[%clk 0:00:41]} 53... a4
{[%clk 0:00:04.9]} 54. f7 {[%clk 0:00:41.5]} 54... Rf4 {[%clk 0:00:03.4]} 55.
Ke7 {[%clk 0:00:39.3]} 55... Re4+ {[%clk 0:00:02.8]} 56. Re6 {[%clk 0:00:39.2]}
56... Rf4 {[%clk 0:00:03]} 57. Rf6 {[%clk 0:00:38.5]} 57... Re4+ {[%clk
0:00:03]} 58. Kd6 {[%clk 0:00:38.7]} 58... Rd4+ {[%clk 0:00:01.1]} 59. Ke5
{[%clk 0:00:39]} 59... Rd8 {[%clk 0:00:01.1]} 60. f8=Q+ {[%clk 0:00:39.2]} 60...
Rxf8 {[%clk 0:00:02]} 61. Rxf8 {[%clk 0:00:39.3]} 61... Kb3 {[%clk 0:00:02.8]}
62. Rh8 {[%clk 0:00:39.4]} 1-0

[Event "Late-Titled-Tuesday-Blitz-February-27-2024"]
[Site "Chess.com"]
[Date "2024.02.27"]
[Round "8"]
[White "MeisterJabo"]
[Black "BardArtem"]
[Result "0-1"]
[WhiteElo "2461"]
[BlackElo "2709"]
[TimeControl "180+1"]
[EndTime "15:27:49 PST"]
[Termination "BardArtem won by resignation"]

1. c4 {[%clk 0:03:00.9]} 1... e6 {[%clk 0:02:53.8]} 2. g3 {[%clk 0:03:01.4]}
2... d5 {[%clk 0:02:53.1]} 3. Nf3 {[%clk 0:03:02.1]} 3... Nf6 {[%clk 0:02:53.5]}
4. Bg2 {[%clk 0:03:02.7]} 4... g6 {[%clk 0:02:51.3]} 5. O-O {[%clk 0:03:02.6]}
5... Bg7 {[%clk 0:02:51.2]} 6. d4 {[%clk 0:03:02.9]} 6... O-O {[%clk 0:02:51]}
7. Nc3 {[%clk 0:03:02.3]} 7... h6 {[%clk 0:02:46.5]} 8. Ne5 {[%clk 0:03:01.7]}
8... Kh7 {[%clk 0:02:45.4]} 9. e4 {[%clk 0:02:32.5]} 9... Nxe4 {[%clk
0:02:33.9]} 10. Nxe4 {[%clk 0:02:32.6]} 10... dxe4 {[%clk 0:02:34.8]} 11. Bxe4
{[%clk 0:02:33.3]} 11... Nd7 {[%clk 0:02:14.4]} 12. f4 {[%clk 0:02:09.1]} 12...
c5 {[%clk 0:01:53.9]} 13. Be3 {[%clk 0:02:08.7]} 13... cxd4 {[%clk 0:01:48.4]}
14. Bxd4 {[%clk 0:02:08.5]} 14... Nxe5 {[%clk 0:01:48.5]} 15. fxe5 {[%clk
0:01:57.6]} 15... Qc7 {[%clk 0:01:47.1]} 16. Qe2 {[%clk 0:01:45.9]} 16... Bd7
{[%clk 0:01:42.3]} 17. Bc3 {[%clk 0:01:31.6]} 17... Bc6 {[%clk 0:01:41.3]} 18.
Rad1 {[%clk 0:01:32.1]} 18... Rac8 {[%clk 0:01:36.8]} 19. b3 {[%clk 0:01:31.2]}
19... Bxe4 {[%clk 0:01:34.1]} 20. Qxe4 {[%clk 0:01:31.5]} 20... b5 {[%clk
0:01:35]} 21. Bb4 {[%clk 0:01:22.8]} 21... Rfd8 {[%clk 0:01:23.6]} 22. Bd6
{[%clk 0:01:21.7]} 22... Qd7 {[%clk 0:00:19.5]} 23. c5 {[%clk 0:01:21.5]} 23...
Kg8 {[%clk 0:00:19.4]} 24. b4 {[%clk 0:01:19.3]} 24... Qc6 {[%clk 0:00:19.4]}
25. Qf4 {[%clk 0:01:13.5]} 25... Rd7 {[%clk 0:00:19.4]} 26. Rf3 {[%clk 0:01:08]}
26... a5 {[%clk 0:00:19.5]} 27. Rdf1 {[%clk 0:01:07.9]} 27... axb4 {[%clk
0:00:19.6]} 28. Qxb4 {[%clk 0:01:07]} 28... Ra8 {[%clk 0:00:20.3]} 29. a3 {[%clk
0:00:40.6]} 29... Ra4 {[%clk 0:00:20.3]} 30. Qd2 {[%clk 0:00:41]} 30... Bxe5
{[%clk 0:00:16.3]} 31. Qf2 {[%clk 0:00:37.1]} 31... Bd4 {[%clk 0:00:14]} 32. Re3
{[%clk 0:00:33.9]} 32... Rxa3 {[%clk 0:00:08.2]} 33. Rfe1 {[%clk 0:00:15.5]}
33... Rxe3 {[%clk 0:00:05.4]} 34. Rxe3 {[%clk 0:00:16.2]} 34... b4 {[%clk
0:00:05]} 35. Qf4 {[%clk 0:00:07]} 35... Bxe3+ {[%clk 0:00:04.1]} 36. Qxe3
{[%clk 0:00:07.9]} 36... Rxd6 {[%clk 0:00:04.6]} 37. cxd6 {[%clk 0:00:08.8]}
37... Qxd6 {[%clk 0:00:05]} 38. Kg2 {[%clk 0:00:03.8]} 38... Qd5+ {[%clk
0:00:04.8]} 39. Kh3 {[%clk 0:00:04.2]} 39... b3 {[%clk 0:00:05.7]} 40. Qc3
{[%clk 0:00:02]} 40... Qh5+ {[%clk 0:00:05.4]} 41. Kg2 {[%clk 0:00:02.1]} 41...
Qd5+ {[%clk 0:00:06.3]} 42. Kh3 {[%clk 0:00:02.5]} 42... h5 {[%clk 0:00:07.1]}
43. Qc8+ {[%clk 0:00:02.2]} 43... Kg7 {[%clk 0:00:07.2]} 44. Qc3+ {[%clk
0:00:02.9]} 44... Kh7 {[%clk 0:00:07.7]} 45. Qc7 {[%clk 0:00:02.8]} 45... Qf5+
{[%clk 0:00:08.1]} 46. Kg2 {[%clk 0:00:03.2]} 46... Qc2+ {[%clk 0:00:08.7]} 47.
Qxc2 {[%clk 0:00:02.4]} 47... bxc2 {[%clk 0:00:09.6]} 0-1

[Event "Late-Titled-Tuesday-Blitz-February-27-2024"]
[Site "Chess.com"]
[Date "2024.02.27"]
[Round "8"]
[White "Eeleyah"]
[Black "zajka-molotok"]
[Result "0-1"]
[WhiteElo "2339"]
[BlackElo "2506"]
[TimeControl "180+1"]
[EndTime "15:27:51 PST"]
[Termination "zajka-molotok won by resignation"]

1. d4 {[%clk 0:03:00.2]} 1... Nc6 {[%clk 0:02:56.4]} 2. g3 {[%clk 0:02:54.3]}
2... e5 {[%clk 0:02:55.1]} 3. dxe5 {[%clk 0:02:47.7]} 3... Nxe5 {[%clk 0:02:56]}
4. Bg2 {[%clk 0:02:46.7]} 4... Nf6 {[%clk 0:02:53.9]} 5. f4 {[%clk 0:02:45.1]}
5... Neg4 {[%clk 0:02:50.9]} 6. h3 {[%clk 0:02:40.1]} 6... Nh6 {[%clk
0:02:49.5]} 7. g4 {[%clk 0:02:33.4]} 7... Nhg8 {[%clk 0:02:44.1]} 8. e4 {[%clk
0:02:26.1]} 8... Bc5 {[%clk 0:02:40.7]} 9. e5 {[%clk 0:02:18.7]} 9... Nh5 {[%clk
0:02:19.6]} 10. gxh5 {[%clk 0:01:53.4]} 10... Qh4+ {[%clk 0:02:18.1]} 11. Kd2
{[%clk 0:01:37.5]} 11... Qxf4+ {[%clk 0:02:15.9]} 12. Kc3 {[%clk 0:01:29]} 12...
Qb4+ {[%clk 0:02:05.9]} 13. Kd3 {[%clk 0:01:29]} 13... Qd4+ {[%clk 0:02:04.8]}
14. Ke2 {[%clk 0:01:29.3]} 14... Qf2+ {[%clk 0:02:04.8]} 15. Kd3 {[%clk
0:01:29.3]} 15... Qxg2 {[%clk 0:02:04.1]} 16. Qf3 {[%clk 0:01:28.6]} 16... Qxf3+
{[%clk 0:01:57.3]} 17. Nxf3 {[%clk 0:01:28.6]} 17... d6 {[%clk 0:01:56.8]} 18.
Bf4 {[%clk 0:01:22]} 18... Bf5+ {[%clk 0:01:51.6]} 19. Kc3 {[%clk 0:01:21.9]}
19... O-O-O {[%clk 0:01:49.3]} 20. Nbd2 {[%clk 0:01:12.2]} 20... Ne7 {[%clk
0:01:47.6]} 21. Kb3 {[%clk 0:00:36.4]} 21... Be6+ {[%clk 0:01:44.7]} 22. c4
{[%clk 0:00:31.3]} 22... b5 {[%clk 0:01:41.4]} 23. Rac1 {[%clk 0:00:30.1]} 23...
Nc6 {[%clk 0:01:36.2]} 24. exd6 {[%clk 0:00:27.5]} 24... Na5+ {[%clk 0:01:29.4]}
25. Kc2 {[%clk 0:00:27.4]} 25... Nxc4 {[%clk 0:01:29.3]} 26. Nxc4 {[%clk
0:00:26.4]} 26... Bxc4 {[%clk 0:01:27.6]} 27. dxc7 {[%clk 0:00:20.9]} 27... Bd3+
{[%clk 0:01:16.7]} 28. Kb3 {[%clk 0:00:19.4]} 28... Rd5 {[%clk 0:01:17.3]} 29.
Ne5 {[%clk 0:00:18.7]} 29... Bd6 {[%clk 0:01:05.1]} 30. Nxf7 {[%clk 0:00:15.1]}
30... Bxf4 {[%clk 0:01:00.8]} 31. Nxh8 {[%clk 0:00:15.2]} 31... Bc4+ {[%clk
0:00:58]} 32. Rxc4 {[%clk 0:00:13.1]} 32... bxc4+ {[%clk 0:00:57.4]} 33. Kxc4
{[%clk 0:00:14]} 33... Rf5 {[%clk 0:00:52.8]} 34. Rg1 {[%clk 0:00:11.5]} 34...
Be5 {[%clk 0:00:46.7]} 35. h6 {[%clk 0:00:07.9]} 35... g5 {[%clk 0:00:41.9]} 36.
h4 {[%clk 0:00:04.9]} 36... Bxh8 {[%clk 0:00:35.8]} 37. hxg5 {[%clk 0:00:04.9]}
37... Bxb2 {[%clk 0:00:33.2]} 38. g6 {[%clk 0:00:04.8]} 38... hxg6 {[%clk
0:00:32]} 39. Rxg6 {[%clk 0:00:05.7]} 39... Rh5 {[%clk 0:00:31.7]} 40. Kb3
{[%clk 0:00:01.4]} 40... Be5 {[%clk 0:00:29.7]} 41. a4 {[%clk 0:00:02.3]} 41...
Bxc7 {[%clk 0:00:29]} 42. Rg8+ {[%clk 0:00:02.8]} 42... Kb7 {[%clk 0:00:28.6]}
43. Rg6 {[%clk 0:00:03.5]} 43... a5 {[%clk 0:00:26.4]} 44. Kc4 {[%clk
0:00:03.7]} 44... Bb6 {[%clk 0:00:17.9]} 45. Kb3 {[%clk 0:00:03.5]} 45... Rh4
{[%clk 0:00:16.5]} 46. Ka3 {[%clk 0:00:03.7]} 46... Rh3+ {[%clk 0:00:16.1]} 47.
Kb2 {[%clk 0:00:03.3]} 47... Be3 {[%clk 0:00:15.3]} 48. Rg7+ {[%clk 0:00:02.3]}
48... Kb6 {[%clk 0:00:15.3]} 49. h7 {[%clk 0:00:03.2]} 49... Bd4+ {[%clk
0:00:14.5]} 50. Kc2 {[%clk 0:00:02.4]} 50... Bxg7 {[%clk 0:00:15.4]} 0-1

[Event "Late-Titled-Tuesday-Blitz-February-27-2024"]
[Site "Chess.com"]
[Date "2024.02.27"]
[Round "8"]
[White "Mikayel99"]
[Black "Binary010"]
[Result "1/2-1/2"]
[WhiteElo "2563"]
[BlackElo "2803"]
[TimeControl "180+1"]
[EndTime "15:27:52 PST"]
[Termination "Game drawn - insufficient material"]

1. d4 {[%clk 0:02:57.9]} 1... d5 {[%clk 0:02:59.9]} 2. c4 {[%clk 0:02:57.3]}
2... c6 {[%clk 0:03:00.5]} 3. Nf3 {[%clk 0:02:55.8]} 3... Nf6 {[%clk 0:03:00.2]}
4. Nc3 {[%clk 0:02:54.8]} 4... e6 {[%clk 0:02:50.5]} 5. e3 {[%clk 0:02:49.5]}
5... Nbd7 {[%clk 0:02:50.7]} 6. Qc2 {[%clk 0:02:49.3]} 6... b6 {[%clk
0:02:50.6]} 7. Bd3 {[%clk 0:02:47]} 7... Bb7 {[%clk 0:02:50.5]} 8. O-O {[%clk
0:02:47.1]} 8... dxc4 {[%clk 0:02:50.8]} 9. Bxc4 {[%clk 0:02:47.3]} 9... a6
{[%clk 0:02:51.5]} 10. e4 {[%clk 0:02:36.4]} 10... b5 {[%clk 0:02:51.4]} 11. Be2
{[%clk 0:02:30.7]} 11... c5 {[%clk 0:02:50.8]} 12. d5 {[%clk 0:02:29.3]} 12...
exd5 {[%clk 0:02:51.1]} 13. Nxd5 {[%clk 0:02:26.6]} 13... Bd6 {[%clk 0:02:48.7]}
14. Rd1 {[%clk 0:02:22.4]} 14... Nxd5 {[%clk 0:02:45]} 15. exd5 {[%clk
0:02:20.4]} 15... O-O {[%clk 0:02:44.1]} 16. Bd3 {[%clk 0:02:18.7]} 16... h6
{[%clk 0:02:29.4]} 17. b3 {[%clk 0:02:11.3]} 17... Ne5 {[%clk 0:02:01.8]} 18.
Nxe5 {[%clk 0:02:03.1]} 18... Bxe5 {[%clk 0:02:02.7]} 19. Bb2 {[%clk 0:02:03.6]}
19... Bxb2 {[%clk 0:02:02]} 20. Qxb2 {[%clk 0:02:04.2]} 20... Re8 {[%clk
0:01:59.7]} 21. Be2 {[%clk 0:01:52.5]} 21... Qd6 {[%clk 0:01:52.4]} 22. Bf3
{[%clk 0:01:51.6]} 22... Re5 {[%clk 0:01:52.2]} 23. Re1 {[%clk 0:01:30.1]} 23...
Rae8 {[%clk 0:01:47.9]} 24. Rxe5 {[%clk 0:01:30]} 24... Rxe5 {[%clk 0:01:48]}
25. Rd1 {[%clk 0:01:14.8]} 25... h5 {[%clk 0:01:31.8]} 26. Qd2 {[%clk
0:01:11.2]} 26... g6 {[%clk 0:01:24.5]} 27. h3 {[%clk 0:01:08.1]} 27... Bc8
{[%clk 0:01:04.5]} 28. Re1 {[%clk 0:00:55.6]} 28... Rxe1+ {[%clk 0:01:04.4]} 29.
Qxe1 {[%clk 0:00:56.5]} 29... Bf5 {[%clk 0:01:04.2]} 30. Qe8+ {[%clk 0:00:46.1]}
30... Kg7 {[%clk 0:01:03.9]} 31. Qc6 {[%clk 0:00:46.8]} 31... Qxc6 {[%clk
0:00:39.1]} 32. dxc6 {[%clk 0:00:47]} 32... Kf6 {[%clk 0:00:33.1]} 33. c7 {[%clk
0:00:33.6]} 33... Bc8 {[%clk 0:00:33.1]} 34. g4 {[%clk 0:00:33.9]} 34... c4
{[%clk 0:00:21.4]} 35. bxc4 {[%clk 0:00:30.6]} 35... bxc4 {[%clk 0:00:22.3]} 36.
gxh5 {[%clk 0:00:31]} 36... c3 {[%clk 0:00:22.5]} 37. Bd1 {[%clk 0:00:16.1]}
37... gxh5 {[%clk 0:00:22.5]} 38. h4 {[%clk 0:00:13.1]} 38... Ke5 {[%clk
0:00:18.2]} 39. Kf1 {[%clk 0:00:11.8]} 39... Kd6 {[%clk 0:00:18.9]} 40. Bc2
{[%clk 0:00:11.5]} 40... Kxc7 {[%clk 0:00:18.3]} 41. Ke2 {[%clk 0:00:12.2]}
41... Kd6 {[%clk 0:00:15.8]} 42. Bb3 {[%clk 0:00:07.1]} 42... Be6 {[%clk
0:00:11.4]} 43. Kd3 {[%clk 0:00:07.5]} 43... Bxb3 {[%clk 0:00:09.3]} 44. axb3
{[%clk 0:00:08.4]} 44... Ke5 {[%clk 0:00:09.9]} 45. Kxc3 {[%clk 0:00:08.8]}
45... Kf4 {[%clk 0:00:10.5]} 46. Kb4 {[%clk 0:00:09.6]} 46... Kg4 {[%clk
0:00:11]} 47. Ka5 {[%clk 0:00:10.4]} 47... Kxh4 {[%clk 0:00:11.5]} 48. Kxa6
{[%clk 0:00:11.2]} 48... Kg4 {[%clk 0:00:08.6]} 49. b4 {[%clk 0:00:12.1]} 49...
h4 {[%clk 0:00:09]} 50. b5 {[%clk 0:00:12.9]} 50... h3 {[%clk 0:00:09.7]} 51. b6
{[%clk 0:00:13.7]} 51... h2 {[%clk 0:00:10.3]} 52. b7 {[%clk 0:00:14.5]} 52...
h1=Q {[%clk 0:00:10.9]} 53. b8=Q {[%clk 0:00:15.2]} 53... Qa1+ {[%clk
0:00:11.2]} 54. Kb7 {[%clk 0:00:15.6]} 54... Qb2+ {[%clk 0:00:11.3]} 55. Kc8
{[%clk 0:00:15.9]} 55... Qxb8+ {[%clk 0:00:11.7]} 56. Kxb8 {[%clk 0:00:16.8]}
56... f5 {[%clk 0:00:03]} 57. Kc7 {[%clk 0:00:17]} 57... f4 {[%clk 0:00:03.1]}
58. Kd6 {[%clk 0:00:17.5]} 58... Kf3 {[%clk 0:00:02]} 59. Ke5 {[%clk 0:00:18]}
59... Kxf2 {[%clk 0:00:02.4]} 60. Kxf4 {[%clk 0:00:18.5]} 1/2-1/2